fUST/lending_fUST_20250605
["ID","MTS","AMOUNT","RATE_DAILY","PERIOD"]
[364366045,1749082240426,-440.0,0.00019357,2]
[364366047,1749082240435,-440.0,0.00019357,2]
[364366049,1749082240445,-593.15,0.00019357,2]
[364366051,1749082240455,-739.67,0.00019357,2]
[364366053,1749082240465,-440.0,0.00019357,2]
[364366055,1749082240475,-440.0,0.00019357,2]
[364366057,1749082240484,-440.0,0.00019357,2]
[364366059,1749082240494,-440.0,0.00019357,2]
[364366061,1749082240503,-502.59,0.00019358,2]
[364366063,1749082240512,-440.0,0.00019358,2]
[364366065,1749082240521,-505.21,0.00019358,2]
[364366067,1749082240531,-440.0,0.00019358,2]
[364366069,1749082240540,-440.0,0.00019358,2]
[364366071,1749082240550,-827.32,0.00019358,2]
[364366073,1749082240564,-1648.52,0.00019358,2]
[364366075,1749082240574,-265.08,0.00019358,2]
[364366077,1749082240583,-440.0,0.00019358,2]
[364366079,1749082240592,-440.0,0.00019358,2]
[364366081,1749082240602,-346.62,0.00019358,2]
[364366083,1749082240611,-440.0,0.00019358,2]
[364366085,1749082240620,-440.0,0.00019358,2]
[364366087,1749082240630,-12672.94222187,0.00019532,2]
[364366089,1749082240640,-160.0,0.00019532,2]
[364366091,1749082240649,-160.0,0.00019532,2]
[364366093,1749082240658,-160.0,0.00019532,2]
[364366095,1749082240668,-160.0,0.00019532,2]
[364366097,1749082240678,-842.5625,0.00019532,2]
[364366099,1749082240688,-229.45591648,0.00019532,2]
[364366101,1749082240697,-212.90465545,0.00019534,2]
[364366102,1749082240707,-160.0,0.00019534,2]
[364366103,1749082240717,-440.0,0.00019631,2]
[364366104,1749082240726,-440.0,0.00019631,2]
[364366105,1749082240738,-593.15,0.00019631,2]
[364366106,1749082240747,-265.08903056,0.00019631,2]
[364366107,1749082240756,-739.67,0.00019631,2]
[364366108,1749082240765,-440.0,0.00019631,2]
[364366109,1749082240775,-440.0,0.00019631,2]
[364366110,1749082240784,-440.0,0.00019631,2]
[364366111,1749082240793,-502.59,0.00019632,2]
[364366112,1749082240802,-440.0,0.00019632,2]
[364366113,1749082240812,-505.21,0.00019632,2]
[364366114,1749082240821,-440.0,0.00019632,2]
[364366115,1749082240830,-440.0,0.00019632,2]
[364366116,1749082240839,-827.32,0.00019632,2]
[364366117,1749082240848,-1648.52,0.00019632,2]
[364366118,1749082240857,-440.0,0.00019632,2]
[364366119,1749082240867,-440.0,0.00019632,2]
[364366120,1749082240876,-440.0,0.00019632,2]
[364366121,1749082240885,-440.0,0.00019632,2]
[364366122,1749082240894,-450.0,0.00019726,2]
[364366123,1749082240903,-450.0,0.00019726,2]
[364366124,1749082240912,-265.39,0.0001987,2]
[364366125,1749082240922,-440.0,0.00019905,2]
[364366126,1749082240936,-440.0,0.00019905,2]
[364366127,1749082240946,-593.15,0.00019905,2]
[364366128,1749082240958,-739.67,0.00019905,2]
[364366130,1749082240967,-440.0,0.00019905,2]
[364366132,1749082240977,-440.0,0.00019905,2]
[364366134,1749082240986,-502.59,0.00019906,2]
[364366136,1749082240996,-451.98,0.00019906,2]
[364366138,1749082241005,-505.21,0.00019906,2]
[364366140,1749082241015,-440.0,0.00019906,2]
[364366142,1749082241025,-440.0,0.00019906,2]
[364366144,1749082241034,-827.32,0.00019906,2]
[364366146,1749082241043,-1648.52,0.00019906,2]
[364366148,1749082241053,-440.0,0.00019906,2]
[364366150,1749082241062,-440.0,0.00019906,2]
[364366152,1749082241071,-440.0,0.00019906,2]
[364366154,1749082241081,-183.19864168,0.0001991,2]
[364366156,1749082241090,-3000.0,0.0002,2]
[364366158,1749082241103,-19305.0,0.0002,2]
[364366161,1749082241115,-22124.0,0.0002,2]
[364366163,1749082241127,-3000.0,0.0002001,2]
[364366165,1749082241140,-3000.0,0.0002002,2]
[364366168,1749082241151,-3000.0,0.0002003,2]
[364366170,1749082241162,-3000.0,0.0002004,2]
[364366172,1749082241173,-3000.0,0.0002005,2]
[364366174,1749082241187,-160.0,0.00020059,2]
[364366176,1749082241199,-3000.0,0.0002006,2]
[364366179,1749082241211,-1600.0,0.00020068,2]
[364366181,1749082241223,-3000.0,0.0002007,2]
[364366183,1749082241234,-3000.0,0.0002008,2]
[364366185,1749082241246,-3000.0,0.0002009,2]
[364366188,1749082241259,-3000.0,0.000201,2]
[364366190,1749082241271,-3000.0,0.0002011,2]
[364366192,1749082241283,-3000.0,0.0002012,2]
[364366194,1749082241295,-3000.0,0.0002013,2]
[364366197,1749082241307,-3000.0,0.0002014,2]
[364366199,1749082241320,-3000.0,0.0002015,2]
[364366201,1749082241331,-3000.0,0.0002016,2]
[364366203,1749082241343,-3000.0,0.0002017,2]
[364366206,1749082241354,-440.0,0.00020179,2]
[364366208,1749082241366,-440.0,0.00020179,2]
[364366210,1749082241378,-593.15,0.00020179,2]
[364366212,1749082241389,-739.67,0.00020179,2]
[364366215,1749082241400,-440.0,0.00020179,2]
[364366218,1749082241427,-440.0,0.00020179,2]
[364366221,1749082241442,-3000.0,0.0002018,2]
[364366223,1749082241455,-502.59,0.0002018,2]
[364366226,1749082241469,-505.21,0.0002018,2]
[364366228,1749082241482,-440.0,0.0002018,2]
[364366230,1749082241492,-440.0,0.0002018,2]
[364366232,1749082241503,-827.32,0.0002018,2]
[364366235,1749082241515,-1648.52,0.0002018,2]
[364366237,1749082241528,-440.0,0.0002018,2]
[364366239,1749082241540,-440.0,0.0002018,2]
[364366241,1749082241552,-440.0,0.0002018,2]
[364366244,1749082241565,-151.0,0.00020181,2]
[364366246,1749082241578,-151.0,0.00020181,2]
[364366249,1749082241593,-151.0,0.00020181,2]
[364366251,1749082241605,-151.0,0.00020181,2]
[364366253,1749082241619,-327.749883,0.00020187,2]
[364366256,1749082241633,-3000.0,0.0002019,2]
[364366258,1749082241648,-3000.0,0.000202,2]
[364366261,1749082241661,-3000.0,0.0002021,2]
[364366263,1749082241675,-3000.0,0.0002022,2]
[364366265,1749082241685,-3000.0,0.0002023,2]
[364366267,1749082241697,-3000.0,0.0002024,2]
[364366269,1749082241707,-3000.0,0.0002025,2]
[364366272,1749082241718,-3000.0,0.0002026,2]
[364366274,1749082241729,-3000.0,0.0002027,2]
[364366276,1749082241744,-166.0,0.00020274,2]
[364366278,1749082241756,-3000.0,0.0002028,2]
[364366281,1749082241769,-3000.0,0.0002029,2]
[364366283,1749082241782,-3000.0,0.000203,2]
[364366285,1749082241795,-3000.0,0.0002031,2]
[364366288,1749082241806,-3000.0,0.0002032,2]
[364366290,1749082241817,-3000.0,0.0002033,2]
[364366292,1749082241828,-3000.0,0.0002034,2]
[364366294,1749082241838,-3000.0,0.0002035,2]
[364366296,1749082241850,-3000.0,0.0002036,2]
[364366298,1749082241864,-3310.412748,0.0002037,2]
[364366301,1749082241876,-440.0,0.00020453,2]
[364366303,1749082241887,-440.0,0.00020453,2]
[364366305,1749082241898,-593.15,0.00020453,2]
[364366307,1749082241909,-739.67,0.00020453,2]
[364366309,1749082241919,-440.0,0.00020453,2]
[364366311,1749082241930,-440.0,0.00020453,2]
[364366314,1749082241942,-502.59,0.00020454,2]
[364366316,1749082241953,-505.21,0.00020454,2]
[364366318,1749082241963,-440.0,0.00020454,2]
[364366320,1749082241975,-440.0,0.00020454,2]
[364366322,1749082241987,-827.32,0.00020454,2]
[364366325,1749082241998,-1648.52,0.00020454,2]
[364366327,1749082242010,-440.0,0.00020454,2]
[364366329,1749082242022,-440.0,0.00020454,2]
[364366331,1749082242033,-440.0,0.00020454,2]
[364366333,1749082242044,-587.0,0.0002047,2]
[364366336,1749082242055,-500.0,0.00020547,2]
[364366338,1749082242066,-1057.01,0.000206,2]
[364366340,1749082242078,-1558.17,0.000206,2]
[364366342,1749082242089,-440.0,0.00020727,2]
[364366344,1749082242100,-440.0,0.00020727,2]
[364366347,1749082242110,-593.15,0.00020727,2]
[364366349,1749082242121,-739.67,0.00020727,2]
[364366351,1749082242132,-440.0,0.00020727,2]
[364366353,1749082242142,-178.18,0.00020727,2]
[364366355,1749082242153,-502.59,0.00020728,2]
[364366357,1749082242165,-505.21,0.00020728,2]
[364366360,1749082242177,-440.0,0.00020728,2]
[364366362,1749082242188,-440.0,0.00020728,2]
[364366364,1749082242199,-827.32,0.00020728,2]
[364366366,1749082242211,-1648.52,0.00020728,2]
[364366368,1749082242222,-440.0,0.00020728,2]
[364366371,1749082242233,-440.0,0.00020728,2]
[364366373,1749082242244,-440.0,0.00020728,2]
[364366375,1749082242256,-165.57016118,0.00020873,2]
[364366377,1749082242268,-440.0,0.00021001,2]
[364366379,1749082242279,-440.0,0.00021001,2]
[364366382,1749082242291,-593.15,0.00021001,2]
[364366384,1749082242303,-739.67,0.00021001,2]
[364366386,1749082242314,-440.0,0.00021001,2]
[364366388,1749082242325,-502.59,0.00021002,2]
[364366390,1749082242337,-505.21,0.00021002,2]
[364366392,1749082242348,-440.0,0.00021002,2]
[364366395,1749082242359,-440.0,0.00021002,2]
[364366397,1749082242371,-827.32,0.00021002,2]
[364366399,1749082242382,-1648.52,0.00021002,2]
[364366401,1749082242393,-440.0,0.00021002,2]
[364366403,1749082242405,-440.0,0.00021002,2]
[364366406,1749082242417,-440.0,0.00021002,2]
[364366408,1749082242428,-500.0,0.00021095,3]
[364366410,1749082242439,-1600.0,0.00021164,2]
[364366412,1749082242450,-440.0,0.00021275,2]
[364366414,1749082242462,-440.0,0.00021275,2]
[364366416,1749082242473,-593.15,0.00021275,2]
[364366418,1749082242484,-739.67,0.00021275,2]
[364366420,1749082242496,-307.30442385,0.00021275,2]
[364366423,1749082242508,-502.59,0.00021276,2]
[364366425,1749082242520,-505.21,0.00021276,2]
[364366427,1749082242531,-199.53,0.00021276,2]
[364366429,1749082242542,-440.0,0.00021276,2]
[364366431,1749082242552,-827.32,0.00021276,2]
[364366433,1749082242563,-1648.52,0.00021276,2]
[364366435,1749082242574,-440.0,0.00021276,2]
[364366438,1749082242586,-440.0,0.00021276,2]
[364366440,1749082242597,-440.0,0.00021276,2]
[364366461,1749082242750,-151.0,0.00021277,2]
[364366463,1749082242762,-155.722721,0.00021277,2]
[364366465,1749082242772,-183.19864165,0.0002129,2]
[364366467,1749082242783,-189.90945202,0.00021498,2]
[364366469,1749082242792,-440.0,0.00021549,2]
[364366471,1749082242802,-170.85,0.00021549,2]
[364366473,1749082242812,-593.15,0.00021549,2]
[364366475,1749082242821,-739.67,0.00021549,2]
[364366477,1749082242831,-502.59,0.0002155,2]
[364366479,1749082242840,-505.21,0.0002155,2]
[364366481,1749082242850,-440.0,0.0002155,2]
[364366483,1749082242859,-827.32,0.0002155,2]
[364366485,1749082242868,-1648.52,0.0002155,2]
[364366487,1749082242878,-440.0,0.0002155,2]
[364366489,1749082242888,-440.0,0.0002155,2]
[364366491,1749082242897,-440.0,0.0002155,2]
[364366493,1749082242906,-236780.66381,0.00021666,2]
[364366495,1749082242916,-500.0,0.00021667,2]
[364366497,1749082242926,-500.0,0.00021667,2]
[364366498,1749082242935,-500.0,0.00021667,2]
[364366501,1749082242945,-500.0,0.00021667,2]
[364366502,1749082242954,-500.0,0.00021667,2]
[364366504,1749082242964,-500.0,0.00021667,2]
[364366506,1749082242973,-500.0,0.00021667,2]
[364366508,1749082242983,-5000.0,0.00021667,2]
[364366510,1749082242992,-500.0,0.00021667,2]
[364366512,1749082243001,-207.4,0.00021667,2]
[364366514,1749082243011,-500.0,0.00021667,2]
[364366516,1749082243020,-500.0,0.00021667,2]
[364366518,1749082243030,-500.0,0.00021667,2]
[364366520,1749082243039,-500.0,0.00021667,2]
[364366522,1749082243049,-500.0,0.00021667,2]
[364366524,1749082243058,-500.0,0.00021667,2]
[364366526,1749082243067,-500.0,0.00021667,2]
[364366528,1749082243077,-500.0,0.00021667,2]
[364366531,1749082243086,-500.0,0.00021667,2]
[364366532,1749082243095,-500.0,0.00021667,2]
[364366534,1749082243105,-500.0,0.00021667,2]
[364366537,1749082243115,-500.0,0.00021667,2]
[364366539,1749082243124,-500.0,0.00021667,2]
[364366540,1749082243134,-2000.0,0.000218,3]
[364366542,1749082243144,-440.0,0.00021823,2]
[364366544,1749082243153,-593.15,0.00021823,2]
[364366547,1749082243162,-739.67,0.00021823,2]
[364366549,1749082243171,-502.59,0.00021824,2]
[364366551,1749082243180,-505.21,0.00021824,2]
[364366553,1749082243189,-440.0,0.00021824,2]
[364366555,1749082243199,-827.32,0.00021824,2]
[364366557,1749082243209,-1648.52,0.00021824,2]
[364366559,1749082243218,-440.0,0.00021824,2]
[364366561,1749082243228,-440.0,0.00021824,2]
[364366563,1749082243238,-440.0,0.00021824,2]
[364366565,1749082243247,-200.0,0.00021917,2]
[364366567,1749082243257,-500.0,0.00021917,2]
[364366569,1749082243266,-3000.0,0.00022,2]
[364366571,1749082243276,-157.0,0.00022,2]
[364366573,1749082243285,-3000.0,0.0002201,2]
[364366575,1749082243295,-3000.0,0.0002202,2]
[364366577,1749082243305,-3000.0,0.0002203,2]
[364366579,1749082243314,-3000.0,0.0002204,2]
[364366581,1749082243324,-3000.0,0.0002205,2]
[364366583,1749082243334,-3000.0,0.0002206,2]
[364366585,1749082243344,-3000.0,0.0002207,2]
[364366587,1749082243353,-3000.0,0.0002208,2]
[364366589,1749082243362,-3000.0,0.0002209,2]
[364366591,1749082243373,-440.0,0.00022097,2]
[364366593,1749082243383,-593.15,0.00022097,2]
[364366595,1749082243393,-739.67,0.00022097,2]
[364366597,1749082243404,-502.59,0.00022098,2]
[364366599,1749082243414,-505.21,0.00022098,2]
[364366601,1749082243424,-440.0,0.00022098,2]
[364366603,1749082243434,-827.32,0.00022098,2]
[364366605,1749082243444,-1648.52,0.00022098,2]
[364366607,1749082243454,-440.0,0.00022098,2]
[364366609,1749082243463,-440.0,0.00022098,2]
[364366612,1749082243474,-190.06428667,0.00022098,2]
[364366613,1749082243483,-151.0,0.000221,7]
[364366615,1749082243493,-3000.0,0.000221,2]
[364366617,1749082243503,-3000.0,0.0002211,2]
[364366619,1749082243513,-3000.0,0.0002212,2]
[364366621,1749082243523,-3000.0,0.0002213,2]
[364366624,1749082243533,-3000.0,0.0002214,2]
[364366625,1749082243542,-3000.0,0.0002215,2]
[364366627,1749082243551,-3000.0,0.0002216,2]
[364366629,1749082243561,-3000.0,0.0002217,2]
[364366632,1749082243571,-3000.0,0.0002218,2]
[364366633,1749082243580,-3000.0,0.0002219,2]
[364366636,1749082243591,-157.0,0.00022192,7]
[364366638,1749082243600,-3000.0,0.000222,2]
[364366640,1749082243609,-1558.17,0.000222,7]
[364366642,1749082243619,-3000.0,0.0002221,2]
[364366644,1749082243628,-5000.0,0.00022215,2]
[364366645,1749082243637,-500.0,0.00022219,2]
[364366647,1749082243647,-1453.70791567,0.00022219,2]
[364366649,1749082243658,-552.53535568,0.00022219,2]
[364366651,1749082243667,-1453.70791567,0.00022219,2]
[364366653,1749082243676,-1453.70791567,0.00022219,2]
[364366655,1749082243689,-1453.70791567,0.00022219,2]
[364366657,1749082243698,-500.0,0.00022219,2]
[364366659,1749082243707,-500.0,0.00022219,2]
[364366661,1749082243716,-500.0,0.00022219,2]
[364366663,1749082243725,-1453.70791567,0.00022219,2]
[364366665,1749082243736,-1453.70791567,0.00022219,2]
[364366667,1749082243746,-1453.70791567,0.00022219,2]
[364366669,1749082243755,-500.0,0.00022219,2]
[364366671,1749082243764,-1453.70791567,0.00022219,2]
[364366673,1749082243773,-500.0,0.00022219,2]
[364366675,1749082243783,-1453.70791567,0.00022219,2]
[364366677,1749082243791,-500.0,0.00022219,2]
[364366679,1749082243802,-1453.70791567,0.00022219,2]
[364366681,1749082243811,-1453.70791567,0.00022219,2]
[364366683,1749082243820,-1453.70791567,0.00022219,2]
[364366685,1749082243830,-1453.70791567,0.00022219,2]
[364366687,1749082243839,-1453.70791567,0.00022219,2]
[364366689,1749082243848,-1453.70791567,0.00022219,2]
[364366690,1749082243858,-1453.70791567,0.00022219,2]
[364366692,1749082243867,-1453.70791567,0.00022219,2]
[364366694,1749082243876,-3000.0,0.0002222,2]
[364366697,1749082243885,-3000.0,0.0002223,2]
[364366698,1749082243894,-3000.0,0.0002224,2]
[364366700,1749082243904,-3000.0,0.0002225,2]
[364366702,1749082243913,-3000.0,0.0002226,2]
[364366704,1749082243923,-1600.0,0.0002226,2]
[364366706,1749082243932,-3000.0,0.0002227,2]
[364366708,1749082243941,-3000.0,0.0002228,2]
[364366710,1749082243950,-3000.0,0.0002229,2]
[364366712,1749082243959,-3000.0,0.000223,2]
[364366714,1749082243969,-3000.0,0.0002231,2]
[364366716,1749082243978,-3000.0,0.0002232,2]
[364366718,1749082243987,-405.0,0.00022322,2]
[364366720,1749082243996,-3000.0,0.0002233,2]
[364366722,1749082244005,-3000.0,0.0002234,2]
[364366724,1749082244015,-3000.0,0.0002235,2]
[364366726,1749082244025,-620.0,0.00022354,2]
[364366728,1749082244034,-3000.0,0.0002236,2]
[364366730,1749082244043,-3000.0,0.0002237,2]
[364366732,1749082244052,-440.0,0.00022371,2]
[364366734,1749082244062,-593.15,0.00022371,2]
[364366736,1749082244071,-739.67,0.00022371,2]
[364366738,1749082244081,-502.59,0.00022372,2]
[364366740,1749082244090,-505.21,0.00022372,2]
[364366742,1749082244099,-440.0,0.00022372,2]
[364366744,1749082244108,-827.32,0.00022372,2]
[364366746,1749082244118,-1648.52,0.00022372,2]
[364366748,1749082244127,-440.0,0.00022372,2]
[364366750,1749082244136,-355.9,0.00022372,2]
[364366752,1749082244145,-3000.0,0.0002238,2]
[364366754,1749082244155,-3000.0,0.0002239,2]
[364366756,1749082244164,-3000.0,0.000224,2]
[364366757,1749082244174,-3000.0,0.0002241,2]
[364366759,1749082244184,-3000.0,0.0002242,2]
[364366761,1749082244193,-3000.0,0.0002243,2]
[364366763,1749082244203,-4265.700119,0.0002244,2]
[364366765,1749082244212,-165.57016118,0.00022503,2]
[364366767,1749082244222,-440.0,0.00022645,2]
[364366769,1749082244231,-593.15,0.00022645,2]
[364366771,1749082244241,-739.67,0.00022645,2]
[364366773,1749082244251,-502.59,0.00022646,2]
[364366775,1749082244260,-505.21,0.00022646,2]
[364366777,1749082244270,-440.0,0.00022646,2]
[364366779,1749082244279,-827.32,0.00022646,2]
[364366781,1749082244289,-1648.52,0.00022646,2]
[364366783,1749082244298,-363.26272739,0.00022646,2]
[364366785,1749082244308,-183.19864165,0.0002267,2]
[364366787,1749082244317,-250.0,0.00022681,2]
[364366789,1749082244327,-1057.01,0.000227,7]
[364366791,1749082244336,-5000.0,0.00022763,2]
[364366793,1749082244346,-440.0,0.00022919,2]
[364366795,1749082244356,-593.15,0.00022919,2]
[364366797,1749082244365,-739.67,0.00022919,2]
[364366799,1749082244375,-502.59,0.0002292,2]
[364366801,1749082244384,-505.21,0.0002292,2]
[364366803,1749082244394,-440.0,0.0002292,2]
[364366805,1749082244404,-827.32,0.0002292,2]
[364366807,1749082244413,-1648.52,0.0002292,2]
[364366809,1749082244422,-151.0,0.00022982,7]
[364366811,1749082244433,-3742.59133857,0.00023,3]
[364366813,1749082244442,-300.73025642,0.00023,3]
[364366815,1749082244452,-12672.94222187,0.00023,3]
[364366817,1749082244461,-157.0,0.00023014,7]
[364366819,1749082244470,-215.0738,0.00023036,2]
[364366821,1749082244480,-181.65,0.00023193,2]
[364366823,1749082244490,-593.15,0.00023193,2]
[364366825,1749082244499,-739.67,0.00023193,2]
[364366827,1749082244509,-502.59,0.00023194,2]
[364366829,1749082244519,-505.21,0.00023194,2]
[364366831,1749082244529,-440.0,0.00023194,2]
[364366833,1749082244539,-827.32,0.00023194,2]
[364366835,1749082244549,-1648.52,0.00023194,2]
[364366837,1749082244559,-5000.0,0.00023311,2]
[364366839,1749082244569,-1600.0,0.00023356,2]
[364366841,1749082244579,-176.545,0.00023368,2]
[364366843,1749082244588,-709.0,0.00023368,2]
[364366845,1749082244598,-2225.0,0.00023368,2]
[364366847,1749082244607,-158.575084,0.00023452,2]
[364366849,1749082244617,-593.15,0.00023467,2]
[364366851,1749082244627,-739.67,0.00023467,2]
[364366852,1749082244636,-502.69,0.00023468,2]
[364366854,1749082244647,-505.35,0.00023468,2]
[364366856,1749082244656,-353.85,0.00023468,2]
[364366858,1749082244666,-827.32,0.00023468,2]
[364366860,1749082244676,-1648.52,0.00023468,2]
[364366862,1749082244686,-1558.17,0.000235,7]
[364366864,1749082244696,-759.766389,0.00023735,3]
[364366866,1749082244706,-593.36,0.00023741,2]
[364366868,1749082244716,-739.87,0.00023741,2]
[364366870,1749082244726,-827.41,0.00023742,2]
[364366872,1749082244738,-151.0,0.00023744,7]
[364366874,1749082244747,-3000.0,0.000238,3]
[364366876,1749082244758,-160.0,0.000238,3]
[364366878,1749082244768,-212.90465545,0.000238,3]
[364366880,1749082244778,-160.0,0.000238,3]
[364366882,1749082244788,-5000.0,0.00023859,2]
[364366884,1749082244797,-500.0,0.00024,2]
[364366886,1749082244808,-183.19864165,0.0002405,2]
[364366888,1749082244817,-165.57016118,0.00024133,2]
[364366890,1749082244826,-334065.07750084,0.0002415,7]
[364366901,1749082244927,-3480.83790388,0.0002415,7]
[364366903,1749082244940,-847.21780698,0.0002415,7]
[364366905,1749082244953,-4130.09086443,0.0002415,7]
[364366907,1749082244964,-207706.64026971,0.0002415,7]
[364366912,1749082245057,-350.8164,0.0001744,2]
[364366913,1749082245068,-89.1836,0.0001744,2]
[364366914,1749082245077,-329.06076025,0.00017714,2]
[364366915,1749082245088,-110.93923975,0.00017714,2]
[364366916,1749082245097,-440.0,0.00019905,2]
[364366917,1749082245106,-440.0,0.00020179,2]
[364366918,1749082245116,-277.82412511,0.00020453,2]
[364366919,1749082245127,-162.17587489,0.00020453,2]
[364366920,1749082245137,-440.0,0.00020727,2]
[364366921,1749082245146,-440.0,0.00021001,2]
[364366922,1749082245155,-440.0,0.00021275,2]
[364366923,1749082245164,-221.07645446,0.00021549,2]
[364367013,1749082246160,-440.0,0.00017439,2]
[364367015,1749082246170,-449.49,0.00017439,2]
[364367017,1749082246179,-440.0,0.0001744,2]
[364367019,1749082246189,-440.0,0.0001744,2]
[364367021,1749082246198,-430.0,0.0001744,2]
[364367023,1749082246208,-177.26,0.00017714,2]
[364367025,1749082246218,-430.0,0.00017714,2]
[364367027,1749082246227,-440.0,0.00017988,2]
[364367029,1749082246238,-440.0,0.00018262,2]
[364367031,1749082246248,-199.29,0.00018536,2]
[364367033,1749082246257,-1579.87429435,0.000189,2]
[364367035,1749082246267,-1579.87429406,0.00019107,2]
[364367037,1749082246277,-1579.87429406,0.00019314,2]
[364367039,1749082246288,-1579.87429406,0.00019521,2]
[364367041,1749082246297,-1579.87429406,0.00019728,2]
[364367042,1749082246306,-1579.87429406,0.00019934,2]
[364367044,1749082246316,-1579.87429406,0.00020141,2]
[364367046,1749082246326,-1579.87429406,0.00020348,3]
[364367048,1749082246335,-1579.87429406,0.00020555,3]
[364367061,1749082246461,-1579.87429406,0.00020762,3]
[364367063,1749082246471,-931.09402268,0.00020969,4]
[364371005,1749082290749,200.0,0.0002439,120]
[364371679,1749082350804,200.0,0.00024707,120]
[364371680,1749082644411,573.70519329,0.00025,120]
[364371690,1749082712595,306.711505,0.00013699,2]
[364371772,1749083310424,5426.59783795,0.00024225,120]
[364371840,1749083432250,-300.0,0.00016399,2]
[364371842,1749083432260,-300.0,0.00016399,2]
[364371844,1749083432269,-300.0,0.00016399,2]
[364371846,1749083432278,-1200.0,0.00016399,2]
[364371847,1749083432287,-15222.94298407,0.000164,2]
[364371849,1749083432298,-550.05701593,0.000164,2]
[364371851,1749083432307,-1307.01925407,0.00016418,2]
[364372212,1749083437955,-1229.19294393,0.00016418,2]
[364372213,1749083437964,-161.17594723,0.00017339,2]
[364372214,1749083437973,-440.0,0.00017436,2]
[364372215,1749083437983,-400.0,0.00017436,2]
[364372216,1749083437992,-500.0,0.00017436,2]
[364372217,1749083438001,-440.0,0.00017436,2]
[364372218,1749083438011,-440.0,0.00017436,2]
[364372219,1749083438020,-418.03,0.00017436,2]
[364372220,1749083438029,-430.0,0.00017436,2]
[364372221,1749083438039,-430.0,0.00017436,2]
[364372222,1749083438047,-440.0,0.00017436,2]
[364372223,1749083438056,-430.0,0.00017436,2]
[364372224,1749083438066,-430.90080385,0.00017436,2]
[364372225,1749083438075,-440.0,0.00017436,2]
[364372226,1749083438084,-440.0,0.00017436,2]
[364372227,1749083438093,-440.0,0.00017436,2]
[364372228,1749083438103,-440.0,0.00017436,2]
[364372229,1749083438112,-500.0,0.00017436,2]
[364372230,1749083438122,-440.0,0.00017436,2]
[364372231,1749083438131,-470.0,0.00017436,2]
[364372232,1749083438141,-440.0,0.00017436,2]
[364372233,1749083438150,-481.98,0.00017436,2]
[364372234,1749083438160,-440.0,0.00017436,2]
[364372235,1749083438175,-440.0,0.00017436,2]
[364372236,1749083438186,-440.0,0.00017436,2]
[364372237,1749083438195,-440.0,0.00017437,2]
[364372238,1749083438204,-420.0,0.00017437,2]
[364372239,1749083438215,-371.6777489,0.00017437,2]
[364372240,1749083438224,-440.0,0.00017437,2]
[364372241,1749083438233,-430.0,0.00017437,2]
[364372242,1749083438245,-440.0,0.00017437,2]
[364372243,1749083438256,-350.0,0.00017437,2]
[364372244,1749083438266,-440.0,0.00017437,2]
[364372245,1749083438277,-298.87917161,0.00017437,2]
[364372246,1749083438286,-440.0,0.00017437,2]
[364372247,1749083438295,-500.0,0.00017437,2]
[364372248,1749083438305,-500.0,0.00017437,2]